[Event "WJCC U20 Girls 2019"]
[Site "New Delhi"]
[Date "2019.10.16"]
[Round "2.28"]
[White "Bakshi, Rutuja"]
[Black "Priyanka, Kumari"]
[Result "0-1"]
[ECO "E62"]
[WhiteElo "2029"]
[BlackElo "1921"]
[Annotator "NA"]
[PlyCount "96"]
[EventDate "2019.10.15"]
[EventType "swiss"]
[EventCountry "IND"]
[SourceTitle "playchess.com"]
[Source "ChessBase"]
[SourceQuality "1"]
[TimeControl "40/5400+30:1800+30"]

1. Nf3 {[%emt 0:00:00]} Nf6 {[%emt 0:00:00]} 2. c4 {[%emt 0:00:00]} g6 {[%emt 0:00:00]} 3. g3 {[%emt 0:00:05]} Bg7 {[%emt 0:00:06]} 4. Bg2 {[%emt 0:00:07]} d6 {[%emt 0:00:22]} 5. Nc3 {[%emt 0:00:25]} O-O {[%emt 0:00:40]} 6. O-O {[%emt 0:00:09]} c6 {[%emt 0:01:40]} 7. d4 {[%emt 0:03:08]} Bf5 {[%emt 0:00:24]} 8. Nh4 {[%emt 0:03:11]} Be6 {[%emt 0:00:57]} 9. d5 {[%emt 0:07:33]} cxd5 {[%emt 0:00:51]} 10. cxd5 {[%emt 0:00:32]} Bd7 {[%emt 0:00:53]} 11. Nf3 {[%emt 0:01:42]} Na6 {[%emt 0:04:07]} 12. h3 {[%emt 0:03:50]} Qb6 {[%emt 0:04:19]} 13. e4 {[%emt 0:10:18]} Rfc8 {[%emt 0:07:41]} 14. Qe2 {[%emt 0:08:16]} Nc5 {[%emt 0:10:53]} 15. Be3 {[%emt 0:15:06]} Qa6 {[%emt 0:09:33]} 16. Qxa6 {[%emt 0:03:49]} bxa6 {[%emt 0:02:27]} 17. Bxc5 {[%emt 0:04:02]} Rxc5 {[%emt 0:01:02]} 18. e5 {[%emt 0:03:09]} Ne8 {[%emt 0:10:43]} 19. Rfe1 {[%emt 0:03:30]} Kf8 {[%emt 0:02:41]} 20. Rad1 {[%emt 0:05:47]} Rb8 {[%emt 0:03:17]} 21. Rd2 {[%emt 0:01:29]} h6 {[%emt 0:07:32]} 22. Bf1 {[%emt 0:17:38]} a5 {[%emt 0:02:14]} 23. Bd3 {[%emt 0:04:22]} Bxh3 {[%emt 0:02:55]} 24. Bb1 {[%emt 0:02:00]} dxe5 {[%emt 0:02:51]} 25. Nxe5 {[%emt 0:01:38]} Bxe5 {[%emt 0:01:17]} 26. Rxe5 {[%emt 0:00:01]} Rxc3 {[%emt 0:00:49]} 27. bxc3 {[%emt 0:00:02]} Rxb1+ {[%emt 0:00:10]} 28. Kh2 {[%emt 0:00:02]} Bf1 {[%emt 0:02:43]} 29. f4 {[%emt 0:01:38]} Nd6 {[%emt 0:01:50]} 30. Rf2 {[%emt 0:00:17]} Bc4 {[%emt 0:03:54]} 31. Rd2 {[%emt 0:00:59]} a4 {[%emt 0:00:55]} 32. g4 {[%emt 0:00:27]} a3 {[%emt 0:00:40]} 33. g5 {[%emt 0:00:21]} Rb2 {[%emt 0:00:52]} 34. Rg2 {[%emt 0:00:05]} Bf1 {[%emt 0:00:38]} 35. Rxb2 {[%emt 0:00:32]} axb2 {[%emt 0:00:06]} 36. Re1 {[%emt 0:00:04]} Bd3 {[%emt 0:00:07]} 37. gxh6 {[%emt 0:00:03]} b1=Q {[%emt 0:00:11]} 38. Rxb1 {[%emt 0:00:03]} Bxb1 {[%emt 0:00:07]} 39. h7 {[%emt 0:00:03]} Kg7 {[%emt 0:00:05]} 40. h8=Q+ {[%emt 0:00:18]} Kxh8 {[%emt 0:00:04]} 41. a4 {[%emt 0:30:07]} a5 {[%emt 0:30:10]} 42. Kg1 {[%emt 0:00:05]} Bc2 {[%emt 0:00:05]} 43. Kf2 {[%emt 0:00:03]} Bxa4 {[%emt 0:00:07]} 44. Ke3 {[%emt 0:00:02]} Bb3 {[%emt 0:00:22]} 45. Kd2 {[%emt 0:00:03]} a4 {[%emt 0:00:49]} 46. Kc1 {[%emt 0:00:03]} a3 {[%emt 0:00:03]} 47. Kb1 {[%emt 0:00:03]} Nc4 {[%emt 0:00:21]} 48. Ka1 {[%emt 0:00:03]} Ne3 {[%emt 0:00:19]} 0-1

[Event "WJCC U20 Girls 2019"]
[Site "New Delhi"]
[Date "2019.10.16"]
[Round "2.30"]
[White "Ulziikhishigjargal, Ochirkhuyag"]
[Black "Fretel, Liza"]
[Result "1-0"]
[ECO "B59"]
[WhiteElo "2194"]
[BlackElo "1877"]
[Annotator "NA"]
[PlyCount "79"]
[EventDate "2019.10.15"]
[EventType "swiss"]
[EventCountry "IND"]
[SourceTitle "playchess.com"]
[Source "ChessBase"]
[SourceQuality "1"]
[TimeControl "40/5400+30:1800+30"]

1. e4 {[%emt 0:00:00]} c5 {[%emt 0:00:00]} 2. Nf3 {[%emt 0:00:00]} Nc6 {[%emt 0:00:00]} 3. d4 {[%emt 0:00:01]} cxd4 {[%emt 0:00:00]} 4. Nxd4 {[%emt 0:00:04]} Nf6 {[%emt 0:00:00]} 5. Nc3 {[%emt 0:00:06]} d6 {[%emt 0:00:09]} 6. Be2 {[%emt 0:01:47]} e5 {[%emt 0:00:11]} 7. Nb3 {[%emt 0:01:24]} Be7 {[%emt 0:00:23]} 8. O-O {[%emt 0:01:56]} O-O {[%emt 0:00:07]} 9. Kh1 {[%emt 0:02:49]} a5 {[%emt 0:00:32]} 10. a4 {[%emt 0:06:32]} Nb4 {[%emt 0:00:26]} 11. f4 {[%emt 0:01:34]} Be6 {[%emt 0:03:45]} 12. f5 {[%emt 0:04:00]} Bd7 {[%emt 0:01:50]} 13. Bf3 {[%emt 0:06:04]} Bc6 {[%emt 0:01:08]} 14. Bd2 {[%emt 0:09:35]} d5 {[%emt 0:13:06]} 15. exd5 {[%emt 0:03:00]} Nbxd5 {[%emt 0:03:43]} 16. Qe1 {[%emt 0:05:58]} Nb4 {[%emt 0:02:31]} 17. Rc1 {[%emt 0:01:35]} Qc7 {[%emt 0:19:09]} 18. Bxc6 {[%emt 0:08:21]} bxc6 {[%emt 0:00:20]} 19. Ne4 {[%emt 0:00:31]} c5 {[%emt 0:04:13]} 20. Bg5 {[%emt 0:03:59]} Nxe4 {[%emt 0:15:39]} 21. Bxe7 {[%emt 0:00:20]} Qxe7 {[%emt 0:00:48]} 22. Qxe4 {[%emt 0:00:06]} Qc7 {[%emt 0:02:45]} 23. f6 {[%emt 0:00:24]} gxf6 {[%emt 0:04:06]} 24. Rf3 {[%emt 0:08:55]} f5 {[%emt 0:02:36]} 25. Rxf5 {[%emt 0:04:34]} f6 {[%emt 0:01:31]} 26. Rcf1 {[%emt 0:00:04]} Ra6 {[%emt 0:02:38]} 27. c3 {[%emt 0:00:06]} c4 {[%emt 0:00:50]} 28. Nd2 {[%emt 0:07:16]} Nd3 {[%emt 0:00:06]} 29. Nxc4 {[%emt 0:00:05]} Nf4 {[%emt 0:01:15]} 30. g3 {[%emt 0:00:54]} Ng6 {[%emt 0:00:27]} 31. Ne3 {[%emt 0:00:40]} Kg7 {[%emt 0:05:23]} 32. Nd5 {[%emt 0:03:21]} Qb8 {[%emt 0:00:24]} 33. h4 {[%emt 0:01:31]} h5 {[%emt 0:01:20]} 34. Rxh5 {[%emt 0:02:18]} Qxb2 {[%emt 0:01:23]} 35. Ne7 {[%emt 0:00:08]} f5 {[%emt 0:00:24]} 36. Nxf5+ {[%emt 0:00:05]} Kf7 {[%emt 0:04:26]} 37. Rh7+ {[%emt 0:05:04]} Kg8 38. Qd5+ {[%emt 0:00:07]} Kxh7 {[%emt 0:03:09]} 39. Qd7+ {[%emt 0:00:05]} Kh8 {[%emt 0:00:40]} 40. Qg7# {[%emt 0:00:05]} 1-0

[Event "WJCC U20 Girls 2019"]
[Site "New Delhi"]
[Date "2019.10.16"]
[Round "2.32"]
[White "Rindhiya V"]
[Black "Nastase, Andreea-Cristina"]
[Result "0-1"]
[ECO "B22"]
[WhiteElo "1817"]
[BlackElo "2077"]
[Annotator "NA"]
[PlyCount "150"]
[EventDate "2019.10.15"]
[EventType "swiss"]
[EventCountry "IND"]
[SourceTitle "playchess.com"]
[Source "ChessBase"]
[SourceQuality "1"]
[TimeControl "40/5400+30:1800+30"]

1. e4 {[%emt 0:00:00]} c5 {[%emt 0:00:00]} 2. c3 {[%emt 0:00:00]} Nf6 {[%emt 0:00:22]} 3. e5 {[%emt 0:00:00]} Nd5 {[%emt 0:00:06]} 4. d4 {[%emt 0:00:00]} cxd4 {[%emt 0:00:26]} 5. Nf3 {[%emt 0:00:01]} e6 {[%emt 0:00:04]} 6. cxd4 {[%emt 0:00:22]} d6 {[%emt 0:02:54]} 7. Bc4 {[%emt 0:00:50]} Nb6 {[%emt 0:01:39]} 8. Bb3 {[%emt 0:05:14]} dxe5 {[%emt 0:00:39]} 9. dxe5 {[%emt 0:05:36]} Qxd1+ {[%emt 0:00:21]} 10. Bxd1 {[%emt 0:00:14]} Nc6 {[%emt 0:02:24]} 11. b3 {[%emt 0:14:08]} Nb4 {[%emt 0:03:23]} 12. O-O {[%emt 0:00:47]} Bd7 {[%emt 0:02:47]} 13. a3 {[%emt 0:08:10]} Nd3 {[%emt 0:07:30]} 14. Be2 {[%emt 0:01:28]} Nxc1 {[%emt 0:00:08]} 15. Rxc1 {[%emt 0:00:04]} Nd5 {[%emt 0:01:20]} 16. Nc3 {[%emt 0:01:58]} Nf4 {[%emt 0:00:50]} 17. Bf1 {[%emt 0:11:32]} Rc8 {[%emt 0:08:46]} 18. g3 {[%emt 0:13:17]} Ng6 {[%emt 0:01:08]} 19. Bb5 {[%emt 0:07:44]} Bc6 {[%emt 0:01:35]} 20. Ne4 {[%emt 0:04:50]} Be7 {[%emt 0:02:11]} 21. Nd4 {[%emt 0:08:29]} Nxe5 {[%emt 0:02:08]} 22. f4 {[%emt 0:00:51]} O-O {[%emt 0:00:26]} 23. Nxc6 {[%emt 0:04:03]} Nxc6 {[%emt 0:00:17]} 24. Bxc6 {[%emt 0:00:02]} Rxc6 {[%emt 0:00:34]} 25. Rxc6 {[%emt 0:00:13]} bxc6 {[%emt 0:00:03]} 26. Rc1 {[%emt 0:05:31]} Bxa3 {[%emt 0:00:48]} 27. Rxc6 {[%emt 0:00:03]} a5 {[%emt 0:00:30]} 28. Ra6 {[%emt 0:05:21]} Bb4 {[%emt 0:00:08]} 29. Nd6 {[%emt 0:00:37]} Bxd6 {[%emt 0:01:02]} 30. Rxd6 {[%emt 0:00:02]} h6 {[%emt 0:00:53]} 31. Ra6 {[%emt 0:00:05]} Rb8 {[%emt 0:00:03]} 32. Rxa5 {[%emt 0:00:11]} Rxb3 {[%emt 0:00:03]} 33. Ra8+ {[%emt 0:02:35]} Kh7 {[%emt 0:00:05]} 34. Ra7 {[%emt 0:00:08]} Kg6 {[%emt 0:00:03]} 35. Kg2 {[%emt 0:01:17]} Kf6 {[%emt 0:00:05]} 36. h3 {[%emt 0:00:52]} g5 {[%emt 0:00:12]} 37. Ra4 {[%emt 0:01:16]} Kg6 {[%emt 0:00:20]} 38. Rc4 {[%emt 0:00:35]} Rb2+ {[%emt 0:01:04]} 39. Kf3 {[%emt 0:00:04]} Rh2 {[%emt 0:00:03]} 40. h4 {[%emt 0:00:58]} gxh4 {[%emt 0:00:10]} 41. gxh4 {[%emt 0:04:20]} Rxh4 {[%emt 0:00:24]} 42. Kg3 {[%emt 0:02:24]} Rh1 {[%emt 0:00:07]} 43. Kg2 {[%emt 0:00:38]} Ra1 {[%emt 0:00:05]} 44. Kg3 {[%emt 0:00:43]} h5 {[%emt 0:00:15]} 45. Rc5 {[%emt 0:00:14]} Ra3+ {[%emt 0:01:38]} 46. Kg2 {[%emt 0:00:24]} Rd3 {[%emt 0:00:14]} 47. Rg5+ {[%emt 0:00:08]} Kh6 {[%emt 0:00:15]} 48. Rg8 {[%emt 0:01:17]} h4 {[%emt 0:02:23]} 49. Rh8+ {[%emt 0:00:18]} Kg6 {[%emt 0:00:05]} 50. Rxh4 {[%emt 0:00:06]} Kf5 {[%emt 0:00:05]} 51. Kf2 {[%emt 0:02:43]} Ke4 {[%emt 0:02:29]} 52. Ke2 {[%emt 0:04:55]} Re3+ {[%emt 0:00:17]} 53. Kd2 {[%emt 0:00:17]} Rf3 {[%emt 0:00:26]} 54. f5+ {[%emt 0:00:31]} Kxf5 {[%emt 0:00:06]} 55. Ra4 {[%emt 0:00:06]} Rf4 {[%emt 0:00:35]} 56. Ra5+ {[%emt 0:00:06]} e5 {[%emt 0:00:03]} 57. Ke3 {[%emt 0:00:09]} Rb4 {[%emt 0:00:05]} 58. Ra3 {[%emt 0:00:05]} Rh4 {[%emt 0:00:04]} 59. Ra7 {[%emt 0:00:05]} Rh3+ {[%emt 0:00:06]} 60. Kf2 {[%emt 0:00:05]} f6 {[%emt 0:00:02]} 61. Ra6 {[%emt 0:00:17]} Rb3 {[%emt 0:00:05]} 62. Rc6 {[%emt 0:00:08]} Kg5 {[%emt 0:00:06]} 63. Re6 {[%emt 0:00:12]} Rb5 {[%emt 0:00:27]} 64. Kf3 {[%emt 0:00:15]} f5 {[%emt 0:00:04]} 65. Ra6 {[%emt 0:00:04]} Rb3+ {[%emt 0:00:03]} 66. Kf2 {[%emt 0:00:07]} Kf4 {[%emt 0:00:04]} 67. Ra4+ {[%emt 0:00:05]} e4 {[%emt 0:00:03]} 68. Ra5 {[%emt 0:00:04]} Rb2+ {[%emt 0:00:10]} 69. Ke1 {[%emt 0:00:06]} Kg4 {[%emt 0:00:14]} 70. Kf1 {[%emt 0:00:10]} f4 {[%emt 0:00:05]} 71. Ra3 {[%emt 0:00:26]} e3 {[%emt 0:00:03]} 72. Ra1 {[%emt 0:00:09]} Kf3 {[%emt 0:00:03]} 73. Rc1 {[%emt 0:00:07]} Rd2 {[%emt 0:00:42]} 74. Re1 {[%emt 0:00:29]} e2+ {[%emt 0:00:31]} 75. Kg1 {[%emt 0:00:03]} Rd1 {[%emt 0:00:04]} 0-1

[Event "WJCC U20 Girls 2019"]
[Site "New Delhi"]
[Date "2019.10.16"]
[Round "2.33"]
[White "Bauyrzhan, Arnash"]
[Black "Aouachria, Marwa"]
[Result "0-1"]
[ECO "B52"]
[WhiteElo "2075"]
[BlackElo "1839"]
[Annotator "NA"]
[PlyCount "82"]
[EventDate "2019.10.15"]
[EventType "swiss"]
[EventCountry "IND"]
[SourceTitle "playchess.com"]
[Source "ChessBase"]
[SourceQuality "1"]
[TimeControl "40/5400+30:1800+30"]

1. e4 {[%emt 0:00:00]} c5 {[%emt 0:00:00]} 2. Nf3 {[%emt 0:00:07]} d6 {[%emt 0:00:00]} 3. Bb5+ {[%emt 0:00:45]} Bd7 {[%emt 0:00:00]} 4. Bxd7+ {[%emt 0:00:19]} Qxd7 {[%emt 0:00:00]} 5. c4 {[%emt 0:00:29]} Nc6 {[%emt 0:04:01]} 6. Nc3 {[%emt 0:00:42]} g6 {[%emt 0:00:14]} 7. d4 {[%emt 0:00:55]} cxd4 {[%emt 0:00:06]} 8. Nxd4 {[%emt 0:00:05]} Bg7 {[%emt 0:00:02]} 9. Be3 {[%emt 0:00:34]} Nf6 {[%emt 0:00:07]} 10. f3 {[%emt 0:00:27]} O-O {[%emt 0:00:28]} 11. O-O {[%emt 0:00:34]} Rfc8 {[%emt 0:00:26]} 12. b3 {[%emt 0:01:31]} Rab8 {[%emt 0:01:43]} 13. Rc1 {[%emt 0:03:22]} a6 {[%emt 0:03:26]} 14. a4 {[%emt 0:09:34]} b6 {[%emt 0:08:53]} 15. Qd2 {[%emt 0:03:51]} Na5 {[%emt 0:06:31]} 16. Qa2 {[%emt 0:04:12]} Nb7 {[%emt 0:06:02]} 17. Rfd1 {[%emt 0:00:43]} Nc5 {[%emt 0:06:40]} 18. b4 {[%emt 0:15:03]} e5 {[%emt 0:00:25]} 19. bxc5 {[%emt 0:05:54]} exd4 {[%emt 0:00:08]} 20. Bxd4 {[%emt 0:00:08]} bxc5 {[%emt 0:00:08]} 21. Bxf6 {[%emt 0:00:35]} Bxf6 {[%emt 0:00:06]} 22. Nd5 {[%emt 0:00:11]} Bg7 {[%emt 0:01:16]} 23. Rb1 {[%emt 0:00:46]} Qa7 {[%emt 0:07:37]} 24. a5 {[%emt 0:03:57]} Rd8 {[%emt 0:11:24]} 25. Rxb8 {[%emt 0:13:31]} Rxb8 {[%emt 0:00:05]} 26. Rb1 {[%emt 0:00:08]} Bd4+ {[%emt 0:01:24]} 27. Kh1 {[%emt 0:08:20]} Rxb1+ {[%emt 0:04:21]} 28. Qxb1 {[%emt 0:00:06]} Qd7 {[%emt 0:02:22]} 29. Qb3 {[%emt 0:01:53]} Kg7 {[%emt 0:01:27]} 30. h3 {[%emt 0:02:25]} h5 {[%emt 0:06:05]} 31. Kh2 {[%emt 0:05:33]} h4 {[%emt 0:05:28]} 32. Qd1 {[%emt 0:08:53]} Qd8 {[%emt 0:08:04]} 33. Qd2 {[%emt 0:02:12]} Qb8 {[%emt 0:01:46]} 34. Nb6 {[%emt 0:01:52]} d5+ {[%emt 0:00:55]} 35. Kh1 {[%emt 0:03:53]} dxc4 {[%emt 0:02:16]} 36. f4 {[%emt 0:02:32]} c3 {[%emt 0:01:05]} 37. Qc1 {[%emt 0:00:05]} Qb7 {[%emt 0:01:51]} 38. Qc2 {[%emt 0:00:56]} Qc7 {[%emt 0:01:45]} 39. e5 {[%emt 0:01:34]} Qc6 {[%emt 0:03:31]} 40. Na4 {[%emt 0:00:19]} Qb5 {[%emt 0:00:21]} 41. Kh2 {[%emt 0:03:16]} Qf1 {[%emt 0:00:47]} 0-1

[Event "WJCC U20 Girls 2019"]
[Site "New Delhi"]
[Date "2019.10.16"]
[Round "2.34"]
[White "Ortiz Verdezoto, Anahi"]
[Black "Noshin, Anjum"]
[Result "0-1"]
[ECO "D10"]
[WhiteElo "2055"]
[BlackElo "1793"]
[Annotator "NA"]
[PlyCount "118"]
[EventDate "2019.10.15"]
[EventType "swiss"]
[EventCountry "IND"]
[SourceTitle "playchess.com"]
[Source "ChessBase"]
[SourceQuality "1"]
[TimeControl "40/5400+30:1800+30"]

1. d4 {[%emt 0:00:00]} d5 {[%emt 0:00:00]} 2. c4 {[%emt 0:00:00]} c6 {[%emt 0:00:00]} 3. cxd5 {[%emt 0:00:01]} cxd5 {[%emt 0:00:02]} 4. Nf3 {[%emt 0:00:16]} Nf6 {[%emt 0:00:27]} 5. Nc3 {[%emt 0:00:17]} e6 {[%emt 0:03:04]} 6. Bf4 {[%emt 0:00:15]} Bd6 {[%emt 0:02:29]} 7. Bxd6 {[%emt 0:00:21]} Qxd6 {[%emt 0:00:11]} 8. e3 {[%emt 0:01:39]} a6 {[%emt 0:03:35] D13: Slav Defence: Exchange variation without ...Bf5} 9. a3 {[%emt 0:00:14]} (9. Ne5 Nbd7 10. f4 b5 11. Bd3 Bb7 12. O-O O-O 13. Qe2 Rac8 14. a4 b4 15. Na2 Nb6 {1-0 (55) Zhao,Y (2396)-Aczel,G (2553) Budapest 2019}) 9... Nbd7 {[%emt 0:02:05]} 10. Qb3 $146 {[%emt 0:07:42]} ({Predecessor:} 10. Bd3 O-O 11. O-O Rd8 12. Rc1 e5 13. dxe5 Nxe5 14. Nxe5 Qxe5 15. h3 Bd7 16. Bb1 Rac8 17. Qf3 Bc6 18. Qf5 Qd6 19. Rcd1 g6 20. Qg5 Kg7 21. Rd4 h6 {0-1 (36) Soler Nadal,J (1881)-Fardbehbahani,B (1979) Benidorm 2008}) 10... O-O {[%emt 0:03:45]} 11. h3 {[%emt 0:03:08]} b6 {[%emt 0:07:13]} 12. Bd3 {[%emt 0:06:27]} Bb7 {[%emt 0:02:34]} 13. O-O {[%emt 0:00:04]} Ne4 {[%emt 0:05:22]} 14. Rac1 {[%emt 0:01:39]} f5 {[%emt 0:07:20]} 15. Ne2 {[%emt 0:03:43]} Rac8 {[%emt 0:16:09]} 16. Qb4 {[%emt 0:03:45]} h6 {[%emt 0:04:58]} 17. Qxd6 {[%emt 0:21:16]} Nxd6 {[%emt 0:00:21]} 18. Nf4 {[%emt 0:00:02]} Kf7 {[%emt 0:04:35]} 19. Be2 {[%emt 0:00:12]} g5 {[%emt 0:15:31]} 20. Nd3 {[%emt 0:07:28]} Rxc1 {[%emt 0:02:43]} 21. Rxc1 {[%emt 0:00:33]} Rc8 {[%emt 0:00:56]} 22. Ra1 {[%emt 0:03:01]} Ke7 {[%emt 0:05:23]} 23. a4 {[%emt 0:04:40]} Ne4 {[%emt 0:02:25]} 24. a5 {[%emt 0:06:12]} bxa5 {[%emt 0:06:08]} 25. Rxa5 {[%emt 0:11:47]} g4 {[%emt 0:00:56]} 26. hxg4 {[%emt 0:00:38]} fxg4 {[%emt 0:00:09]} 27. Nfe1 {[%emt 0:00:34]} h5 {[%emt 0:02:32]} 28. Ra1 {[%emt 0:02:02]} Nd6 {[%emt 0:02:26]} 29. Nf4 {[%emt 0:00:27]} Nf6 {[%emt 0:00:26]} 30. Ned3 {[%emt 0:02:13]} Rc2 {[%emt 0:00:40]} 31. Bd1 {[%emt 0:05:16]} Rd2 {[%emt 0:00:32]} 32. Rc1 {[%emt 0:01:20]} Nfe4 {[%emt 0:00:25]} 33. Ba4 {[%emt 0:02:48]} h4 {[%emt 0:00:30]} 34. Rc7+ {[%emt 0:01:15]} Kf6 {[%emt 0:00:16]} 35. Rh7 {[%emt 0:02:16]} g3 {[%emt 0:00:45]} 36. fxg3 {[%emt 0:01:26]} hxg3 {[%emt 0:00:20]} 37. Rh6+ {[%emt 0:00:46]} Kg7 {[%emt 0:00:34]} 38. Rxe6 {[%emt 0:02:32]} Bc6 {[%emt 0:00:13]} 39. Bb3 {[%emt 0:00:12]} Bb5 {[%emt 0:00:10]} 40. Re7+ {[%emt 0:00:40]} Kh6 {[%emt 0:00:39]} 41. Ne5 {[%emt 0:30:49]} Rxb2 {[%emt 0:30:45]} 42. Ng4+ {[%emt 0:00:00]} Kg5 {[%emt 0:00:00]} 43. Rg7+ {[%emt 0:00:00]} Kf5 $11 {[%emt 0:00:00]} (43... Kh4 $5 44. Bd1 $8 Be2 45. Rh7+ (45. Nxe2 Rd2 $17) (45. Bxe2 $2 Rb1+ 46. Bf1 Nd2 $19) 45... Kg5 46. Rg7+ (46. Nxe2 Rd2 $17) (46. Bxe2 $2 Rb1+ 47. Bf1 Nd2 $19) 46... Kh4 47. Rh7+ Kg5 48. Rg7+ Kh4 $11) 44. Nh6+ {[%emt 0:00:00]} Kf6 {[%emt 0:00:00]} 45. Rg6+ {[%emt 0:00:00]} Ke7 {[%emt 0:00:00]} 46. Nxd5+ {[%emt 0:00:00]} Kd8 {[%emt 0:00:00]} 47. Rg8+ {[%emt 0:00:00]} Be8 {[%emt 0:00:00]} 48. Bd1 {[%emt 0:00:00]} Rb1 {[%emt 0:00:00]} 49. Kf1 {[%emt 0:00:00]} Rxd1+ {[%emt 0:00:00]} 50. Ke2 {[%emt 0:00:00]} Rd2+ {[%emt 0:00:00]} 51. Kf3 {[%emt 0:00:00]} Rf2+ {[%emt 0:00:00]} 52. Kg4 {[%emt 0:00:00]} Nf6+ {[%emt 0:00:00]} 53. Nxf6 {[%emt 0:00:00]} Rxf6 {[%emt 0:00:00]} 54. Rh8 {[%emt 0:00:00]} Kc7 {[%emt 0:00:00]} 55. e4 {[%emt 0:00:00]} Bd7+ {[%emt 0:00:00]} 56. Kxg3 {[%emt 0:00:00]} Nxe4+ {[%emt 0:00:00]} 57. Kh2 {[%emt 0:00:00]} Rf4 {[%emt 0:00:00]} 58. Kg1 {[%emt 0:00:00]} Ng3 {[%emt 0:00:00]} 59. d5 {[%emt 0:00:00]} Ne2+ {[%emt 0:00:00]} 0-1

[Event "WJCC U20 Girls 2019"]
[Site "New Delhi"]
[Date "2019.10.16"]
[Round "2.35"]
[White "Figueroa Bernal, Julia Dennis"]
[Black "Zhang, Xiao"]
[Result "0-1"]
[ECO "B12"]
[WhiteElo "1777"]
[BlackElo "2053"]
[Annotator "NA"]
[PlyCount "50"]
[EventDate "2019.10.15"]
[EventType "swiss"]
[EventCountry "IND"]
[SourceTitle "playchess.com"]
[Source "ChessBase"]
[SourceQuality "1"]
[TimeControl "40/5400+30:1800+30"]

1. e4 {[%emt 0:00:00]} c6 {[%emt 0:00:00]} 2. d4 {[%emt 0:00:00]} d5 {[%emt 0:00:00]} 3. e5 {[%emt 0:00:00]} c5 {[%emt 0:00:00]} 4. dxc5 {[%emt 0:00:00]} Nc6 {[%emt 0:00:00]} 5. Nf3 {[%emt 0:00:44]} Bg4 {[%emt 0:00:05]} 6. c3 {[%emt 0:02:18]} e6 {[%emt 0:00:09]} 7. b4 {[%emt 0:02:23]} a6 {[%emt 0:01:08]} 8. Bf4 {[%emt 0:08:58]} g5 {[%emt 0:00:09]} 9. Bg3 {[%emt 0:01:01]} Bxf3 {[%emt 0:00:24]} 10. Qxf3 {[%emt 0:00:11]} Bg7 {[%emt 0:00:03]} 11. Bd3 {[%emt 0:07:37]} h5 {[%emt 0:01:55]} 12. h4 {[%emt 0:01:11]} Nxe5 {[%emt 0:00:30]} 13. Qe2 {[%emt 0:01:12]} Nxd3+ {[%emt 0:01:12]} 14. Qxd3 {[%emt 0:00:07]} Nh6 {[%emt 0:02:31]} 15. hxg5 {[%emt 0:10:08]} Qxg5 {[%emt 0:00:23]} 16. Nd2 {[%emt 0:02:48]} Qf5 {[%emt 0:04:16]} 17. Qxf5 {[%emt 0:03:27]} Nxf5 {[%emt 0:00:41]} 18. Rc1 {[%emt 0:00:18]} Nxg3 {[%emt 0:02:08]} 19. fxg3 {[%emt 0:00:09]} a5 {[%emt 0:03:14]} 20. b5 {[%emt 0:13:55]} Rc8 {[%emt 0:01:20]} 21. Nb3 {[%emt 0:00:42]} a4 {[%emt 0:00:32]} 22. Na5 {[%emt 0:00:14]} Rxc5 {[%emt 0:01:01]} 23. Nxb7 {[%emt 0:00:09]} Rc7 {[%emt 0:00:15]} 24. Nd6+ {[%emt 0:02:06]} Ke7 {[%emt 0:00:26]} 25. b6 {[%emt 0:00:15]} Rxc3 0-1

[Event "WJCC U20 Girls 2019"]
[Site "New Delhi"]
[Date "2019.10.16"]
[Round "2.36"]
[White "Rathi Dhanashree"]
[Black "Jain Nityata"]
[Result "0-1"]
[ECO "D78"]
[WhiteElo "1692"]
[BlackElo "2029"]
[Annotator "NA"]
[PlyCount "78"]
[EventDate "2019.10.15"]
[EventType "swiss"]
[EventCountry "IND"]
[SourceTitle "playchess.com"]
[Source "ChessBase"]
[SourceQuality "1"]
[TimeControl "40/5400+30:1800+30"]

1. d4 {[%emt 0:00:00]} Nf6 {[%emt 0:00:00]} 2. Nf3 {[%emt 0:00:06]} g6 {[%emt 0:00:00]} 3. g3 {[%emt 0:00:08]} Bg7 {[%emt 0:00:00]} 4. Bg2 {[%emt 0:00:12]} O-O {[%emt 0:00:00]} 5. O-O {[%emt 0:00:10]} d5 {[%emt 0:00:00]} 6. c4 {[%emt 0:00:14]} c6 {[%emt 0:00:01]} 7. b3 {[%emt 0:00:53]} Ne4 {[%emt 0:04:50]} 8. Bb2 {[%emt 0:02:06]} Be6 {[%emt 0:05:46]} 9. Qc1 $14 {[%emt 0:05:41]} Nd7 {[%emt 0:06:04]} 10. Nbd2 {[%emt 0:08:30]} Nxd2 {[%emt 0:04:29]} 11. Nxd2 {[%emt 0:00:27]} dxc4 {[%emt 0:03:15]} 12. Nxc4 {[%emt 0:09:30]} Nb6 {[%emt 0:02:07]} 13. Nxb6 {[%emt 0:09:24]} Qxb6 {[%emt 0:10:29]} 14. e3 {[%emt 0:03:53]} a5 {[%emt 0:02:05]} 15. Ba3 {[%emt 0:09:32]} Bf6 {[%emt 0:03:07]} 16. Rb1 {[%emt 0:03:15]} Rfd8 {[%emt 0:13:35]} 17. Qc2 {[%emt 0:07:27]} Qa6 {[%emt 0:16:15]} 18. Rbc1 {[%emt 0:07:50]} a4 {[%emt 0:01:32]} 19. b4 {[%emt 0:00:47]} Bd5 {[%emt 0:01:53]} 20. e4 {[%emt 0:05:52]} Be6 {[%emt 0:01:50]} 21. e5 {[%emt 0:02:42]} Bg7 {[%emt 0:00:37]} 22. Rfd1 {[%emt 0:00:42]} Qb6 {[%emt 0:04:20]} 23. Qb2 {[%emt 0:02:44]} Rd7 {[%emt 0:01:31]} 24. Rc5 {[%emt 0:02:50]} Rad8 {[%emt 0:02:45]} 25. Rd2 {[%emt 0:06:03]} Bd5 {[%emt 0:03:37]} 26. b5 {[%emt 0:05:14]} Bxg2 {[%emt 0:03:47]} 27. Kxg2 {[%emt 0:00:20]} cxb5 {[%emt 0:00:38]} 28. Rxb5 {[%emt 0:00:33]} Qc6+ {[%emt 0:00:32]} 29. Kg1 {[%emt 0:01:10]} Qf3 {[%emt 0:03:00]} 30. Rc5 {[%emt 0:05:46]} Bh6 {[%emt 0:02:19]} 31. Rc3 {[%emt 0:00:14]} Qe4 {[%emt 0:00:44]} 32. Rd1 {[%emt 0:00:59]} Rxd4 {[%emt 0:01:18]} 33. Rxd4 {[%emt 0:00:06]} Rxd4 {[%emt 0:02:02]} 34. Rc8+ {[%emt 0:00:47]} Kg7 {[%emt 0:00:51]} 35. e6 {[%emt 0:00:31]} f6 {[%emt 0:00:12]} 36. Qxd4 {[%emt 0:00:45]} Qxd4 {[%emt 0:00:15]} 37. Bxe7 {[%emt 0:00:05]} Qd1+ {[%emt 0:00:25]} 38. Kg2 {[%emt 0:00:33]} Qd5+ {[%emt 0:00:25]} 39. f3 {[%emt 0:00:38]} Qxe6 {[%emt 0:00:21]} 0-1